bitfinex-derivatives/quotes_SOLF0:USTF0_20260310
["timestamp","ask_amount","ask_price","bid_price","bid_amount"]
[1773179761810,21.62705009,85.73,85.66,3.48086009]
[1773179762016,21.62705009,85.73,85.661,4.12740058]
[1773179763309,10.498,85.726,85.685,10.503]
[1773179763510,18.14619,85.725,85.685,10.503]
[1773179765218,18.14619,85.723,85.685,10.503]
[1773179769818,18.14619,85.723,85.69,10.502]
[1773179772526,18.14619,85.719,85.684,10.503]
[1773179783827,18.14619,85.719,85.691,10.502]
[1773179793040,18.14619,85.719,85.651,21.67990971]
[1773179793041,18.14619,85.719,85.669,4.02967017]
[1773179793247,18.56596778,85.699,85.658,4.03002664]
[1773179794342,18.56596778,85.699,85.669,10.505]
[1773179804158,18.56596778,85.699,85.674,10.504]
[1773179812368,18.56596778,85.699,85.666,3.92543226]
[1773179813361,18.56596778,85.699,85.673,10.504]
[1773179820665,18.56596778,85.699,85.65,3.48573803]
[1773179820666,18.56596778,85.699,85.667,10.505]
[1773179824270,18.14726906,85.698,85.66,10.506]
[1773179829967,18.14726906,85.689,85.628,21.67990971]
[1773179830171,18.14726906,85.679,85.629,3.87370856]
[1773179831366,18.14726906,85.679,85.639,10.508]
[1773179831970,18.14726906,85.679,85.642,3.88107383]
[1773179833475,18.14726906,85.679,85.643,10.508]
[1773179834868,18.14726906,85.679,85.647,10.507]
[1773179835070,18.14726906,85.679,85.647,14.31851596]
[1773179836672,18.14726906,85.679,85.639,10.508]
[1773179837073,18.14726906,85.679,85.639,14.17892296]
[1773179837274,18.14726906,85.679,85.643,10.508]
[1773179844080,18.14726906,85.679,85.64,3.67109464]
[1773179845379,18.14726906,85.679,85.641,10.508]
[1773179849683,18.14726906,85.679,85.645,3.6818729]
[1773179853788,18.14726906,85.679,85.644,10.508]
[1773179854287,17.93643675,85.699,85.645,3.79882113]
[1773179854483,17.93643675,85.697,85.65,3.48573803]
[1773179854680,17.93643675,85.697,85.651,3.80129384]
[1773179855485,17.93643675,85.697,85.665,3.80416539]
[1773179855688,3.48573803,85.72,85.665,3.80416539]
[1773179855988,8.7634445,85.719,85.665,3.80416539]
[1773179856190,8.7634445,85.718,85.665,3.80416539]
[1773179856488,8.7634445,85.717,85.68,17.95806392]
[1773179856688,8.7634445,85.716,85.68,17.95806392]
[1773179856982,3.48573803,85.72,85.68,17.95806392]
[1773179857185,8.76021074,85.719,85.68,17.95806392]
[1773179857386,3.48573803,85.73,85.68,17.95806392]
[1773179857590,17.93643675,85.728,85.68,17.95806392]
[1773179857792,8.76057011,85.729,85.68,17.95806392]
[1773179857793,17.93643675,85.726,85.68,17.95806392]
[1773179857985,8.76057011,85.725,85.68,17.95806392]
[1773179858187,8.76057011,85.724,85.68,17.95806392]
[1773179858391,8.76057011,85.724,85.67,3.48573803]
[1773179858392,17.93643675,85.726,85.692,10.502]
[1773179858592,8.75755587,85.725,85.692,10.502]
[1773179858892,17.93643675,85.726,85.692,10.502]
[1773179859092,8.75755934,85.725,85.692,10.502]
[1773179859288,17.93643675,85.726,85.692,10.502]
[1773179861093,17.93643675,85.726,85.692,28.46006392]
[1773179861692,17.93643675,85.726,85.694,10.501]
[1773179862594,17.93643675,85.726,85.693,17.95806392]
[1773179864492,17.93643675,85.726,85.693,28.46006392]
[1773179866188,17.93643675,85.726,85.693,10.502]
[1773179873498,17.93643675,85.726,85.693,29.10880798]
[1773179877201,17.93643675,85.726,85.695,10.501]
[1773179877999,17.93643675,85.726,85.695,29.10780798]
[1773179878496,17.93643675,85.726,85.695,10.501]
[1773179878799,17.93643675,85.726,85.699,18.60680798]
[1773179879398,18.48539217,85.739,85.699,18.60680798]
[1773179879798,18.48539217,85.739,85.701,18.60680798]
[1773179880499,18.48539217,85.739,85.703,29.10680798]
[1773179880901,18.48539217,85.739,85.705,29.10680798]
[1773179881202,18.48539217,85.748,85.706,18.60680798]
[1773179881603,18.48539217,85.748,85.714,18.60680798]
[1773179882894,18.48539217,85.748,85.718,18.60680798]
[1773179884199,18.48539217,85.748,85.719,10.498]
[1773179884403,18.48539217,85.748,85.719,29.10480798]
[1773179885204,18.48539217,85.748,85.72,18.60680798]
[1773179886802,18.48539217,85.758,85.722,29.10480798]
[1773179887714,18.48539217,85.758,85.725,10.498]
[1773179888104,18.48539217,85.758,85.725,29.10480798]
[1773179888710,18.48539217,85.758,85.728,18.60680798]
[1773179888908,18.48539217,85.768,85.728,18.60680798]
[1773179890310,18.48539217,85.768,85.729,10.497]
[1773179890508,3.48353726,85.76,85.729,29.10380798]
[1773179891916,3.48353726,85.76,85.731,10.497]
[1773179893220,3.48353726,85.76,85.731,29.10380798]
[1773179894415,3.48353726,85.76,85.732,18.60680798]
[1773179894616,18.48539217,85.768,85.732,18.60680798]
[1773179895215,18.48539217,85.768,85.733,29.10380798]
[1773179895615,18.48539217,85.768,85.734,18.60680798]
[1773179895816,18.48539217,85.768,85.739,10.496]
[1773179896012,18.48539217,85.768,85.739,29.10280798]
[1773179896821,18.48539217,85.768,85.739,18.60680798]
[1773179902922,18.79067559,85.772,85.739,18.60680798]
[1773179903119,22.27421285,85.78,85.739,18.60680798]
[1773179903316,18.79067559,85.779,85.739,18.60680798]
[1773179904425,18.79067559,85.779,85.744,10.495]
[1773179905228,18.79067559,85.779,85.744,29.45528066]
[1773179905922,18.79067559,85.779,85.745,18.96028066]
[1773179907027,18.79067559,85.759,85.711,18.96028066]
[1773179908125,18.79067559,85.759,85.642,28.90159277]
[1773179908126,18.79067559,85.759,85.721,18.96028066]
[1773179909027,18.79067559,85.759,85.725,10.498]
[1773179910129,18.79067559,85.759,85.721,18.96028066]
[1773179911331,18.79067559,85.759,85.722,10.498]
[1773179912538,18.79067559,85.759,85.722,29.45828066]
[1773179913434,18.79067559,85.759,85.67,21.67990971]
[1773179913435,22.27421285,85.75,85.67,21.67990971]
[1773179913626,20.979,85.792,85.691,18.96028066]
[1773179913627,22.27421285,85.74,85.691,18.96028066]
[1773179914028,22.27421285,85.73,85.691,18.96028066]
[1773179915436,22.27421285,85.73,85.697,10.501]
[1773179917436,18.79067559,85.73,85.7,18.96028066]
[1773179919137,22.27421285,85.73,85.7,18.96028066]
[1773179921833,22.27421285,85.73,85.699,10.501]
[1773179922437,22.27421285,85.73,85.697,10.501]
[1773179925542,22.27418615,85.73,85.697,10.501]
[1773179926837,22.27418615,85.73,85.688,18.96028066]
[1773179927042,18.57871349,85.719,85.675,18.76377427]
[1773179928336,18.57871349,85.709,85.661,18.76377427]
[1773179929140,18.57871349,85.699,85.65,18.76377427]
[1773179929446,17.44099217,85.689,85.65,18.76377427]
[1773179929645,17.44099217,85.689,85.652,10.507]
[1773179930645,17.44099217,85.689,85.65,18.76377427]
[1773179931046,17.44099217,85.669,85.621,18.03733183]
[1773179932351,17.44099217,85.669,85.638,10.508]
[1773179932549,17.44099217,85.659,85.617,18.03733183]
[1773179932953,17.44099217,85.649,85.611,28.54933183]
[1773179933251,3.48351056,85.64,85.611,10.512]
[1773179934356,3.48351056,85.64,85.603,10.513]
[1773179934555,17.44099217,85.649,85.603,10.513]
[1773179934754,17.44099217,85.639,85.603,10.513]
[1773179935050,17.44099217,85.639,85.599,18.03733183]
[1773179936150,17.44099217,85.629,85.588,18.03733183]
[1773179937356,3.48351056,85.65,85.605,18.03733183]
[1773179937556,17.44099217,85.653,85.611,18.03733183]
[1773179937758,3.48351056,85.66,85.611,18.03733183]
[1773179938357,17.44099217,85.664,85.624,28.54733183]
[1773179938658,17.44099217,85.664,85.625,18.03733183]
[1773179941358,17.44099217,85.664,85.627,10.51]
[1773179943455,17.44099217,85.678,85.635,18.03733183]
[1773179944359,17.44099217,85.678,85.634,10.509]
[1773179944360,17.44099217,85.702,85.648,18.03733183]
[1773179944560,17.44099217,85.702,85.651,18.03733183]
[1773179945464,17.44099217,85.702,85.667,28.54233183]
[1773179945664,17.44099217,85.715,85.667,18.03733183]
[1773179947060,17.44099217,85.715,85.682,10.503]
[1773179947363,17.44099217,85.728,85.683,18.03733183]
[1773179948459,17.44099217,85.728,85.684,10.503]
[1773179948862,17.44099217,85.728,85.684,28.54033183]
[1773179950263,17.44099217,85.728,85.694,10.501]
[1773179952665,17.44099217,85.719,85.672,18.03733183]
[1773179952968,17.44099217,85.719,85.66,3.48351056]
[1773179952969,17.44099217,85.699,85.66,18.03733183]
[1773179954469,17.44099217,85.699,85.66,28.54333183]
[1773179955768,17.44099217,85.679,85.618,18.03733183]
[1773179955965,17.44099217,85.679,85.592,21.028]
[1773179955966,17.44099217,85.669,85.62,21.52084239]
[1773179956168,17.44099217,85.669,85.62,18.03733183]
[1773179956364,17.44099217,85.669,85.625,10.51]
[1773179956569,17.44099217,85.669,85.62,18.03733183]
[1773179956970,17.44099217,85.669,85.62,21.52084239]
[1773179957481,17.44099217,85.669,85.632,10.509]
[1773179961569,3.48351056,85.68,85.638,29.08559839]
[1773179962072,3.48351056,85.68,85.642,10.508]
[1773179964376,22.17104769,85.68,85.642,10.508]
[1773179966178,18.68753713,85.669,85.622,18.57759839]
[1773179966376,18.68753713,85.659,85.601,18.57759839]
[1773179966577,3.48351056,85.65,85.601,18.57759839]
[1773179967376,3.48351056,85.65,85.618,10.511]
[1773179968680,22.17104769,85.65,85.618,10.511]
[1773179969579,3.48351056,85.65,85.618,10.511]
[1773179969778,3.48351056,85.65,85.618,29.08859839]
[1773179974179,22.17104769,85.66,85.618,29.08859839]
[1773179974577,22.17104769,85.66,85.623,18.57759839]
[1773179974781,18.68753713,85.686,85.623,18.57759839]
[1773179974981,3.48351056,85.68,85.623,18.57759839]
[1773179975375,18.68753713,85.686,85.647,18.57759839]
[1773179975581,3.48351056,85.7,85.647,18.57759839]
[1773179975779,3.48351056,85.7,85.651,18.57759839]
[1773179975979,22.17104769,85.71,85.651,18.57759839]
[1773179976380,22.17104769,85.71,85.673,10.504]
[1773179981080,18.68753713,85.71,85.673,10.504]
[1773179981283,3.48351056,85.71,85.68,18.57759839]
[1773179981479,3.48351056,85.72,85.68,18.57759839]
[1773179981788,3.48351056,85.72,85.683,29.08059839]
[1773179981986,3.48351056,85.73,85.684,18.57759839]
[1773179983384,3.48351056,85.73,85.696,10.501]
[1773179984278,18.68753713,85.738,85.695,18.57759839]
[1773179984482,3.48351056,85.73,85.695,18.57759839]
[1773179984681,18.68753713,85.738,85.695,18.57759839]
[1773179985485,18.68753713,85.738,85.7,10.501]
[1773179992586,3.48297096,85.74,85.695,18.57759839]
[1773179992587,3.48297096,85.73,85.695,18.57759839]
[1773179992789,3.48297096,85.73,85.624,21.7011514]
[1773179992790,21.05069655,85.72,85.686,18.82024752]
[1773179993196,17.56772559,85.709,85.651,18.82024752]
[1773179993393,3.48297096,85.69,85.651,18.82024752]
[1773179994791,21.05069655,85.7,85.651,18.82024752]
[1773179994994,21.05069655,85.7,85.664,10.505]
[1773179995491,20.46748375,85.7,85.664,10.505]
[1773179998193,20.46748375,85.7,85.654,10.506]
[1773179998398,20.46748375,85.7,85.651,18.82024752]
[1773179998399,20.46748375,85.7,85.655,18.82024752]
[1773179999594,20.46748375,85.7,85.664,10.505]
[1773179999797,3.48297096,85.69,85.664,10.505]
[1773180000395,17.56772559,85.679,85.636,18.82024752]
[1773180000592,3.48297096,85.67,85.636,18.82024752]
[1773180000793,17.56772559,85.716,85.641,18.82024752]
[1773180000993,17.56772559,85.716,85.563,28.90159277]
[1773180000994,17.56772559,85.71,85.673,18.82024752]
[1773180001190,17.56772559,85.754,85.681,18.82024752]
[1773180001398,17.56772559,85.767,85.729,10.497]
[1773180001592,3.48297096,85.76,85.726,18.82024752]
[1773180001793,3.48297096,85.75,85.701,18.82024752]
[1773180002193,3.48297096,85.74,85.702,18.82024752]
[1773180002800,3.48297096,85.74,85.704,10.5]
[1773180003199,3.48297096,85.74,85.68,3.48297096]
[1773180003200,17.56772559,85.74,85.681,18.82024752]
[1773180003402,3.48297096,85.73,85.681,18.82024752]
[1773180004004,21.05069655,85.74,85.681,18.82024752]
[1773180004206,21.05069655,85.74,85.703,10.5]
[1773180006102,3.48297096,85.73,85.692,10.502]
[1773180006502,21.05069655,85.74,85.692,10.502]
[1773180006704,17.56772559,85.754,85.709,29.32024752]
[1773180006904,17.56772559,85.754,85.71,18.82024752]
[1773180007702,21.05069655,85.75,85.69,3.48297096]
[1773180007907,3.48297096,85.74,85.691,18.82024752]
[1773180008103,21.05069655,85.75,85.691,18.82024752]
[1773180008709,17.56772559,85.75,85.703,18.82024752]
[1773180009008,21.05069655,85.75,85.651,18.82024752]
[1773180009213,3.48297096,85.74,85.691,18.82024752]
[1773180009404,21.05069655,85.74,85.691,18.82024752]
[1773180009599,17.56772559,85.812,85.705,10.5]
[1773180009806,17.56772559,85.801,85.706,18.82024752]
[1773180010019,3.48297096,85.75,85.706,18.82024752]
[1773180011508,3.48297096,85.75,85.708,10.5]
[1773180014407,17.56772559,85.751,85.708,10.5]
[1773180014607,17.56772559,85.751,85.712,10.499]
[1773180015709,3.48297096,85.75,85.712,10.499]
[1773180016512,21.05069655,85.75,85.709,18.82024752]
[1773180017609,21.05069655,85.75,85.703,10.5]
[1773180017610,3.48297096,85.74,85.703,10.5]
[1773180018014,21.05069655,85.75,85.703,10.5]
[1773180019113,21.05069655,85.75,85.707,10.5]
[1773180021014,21.05069655,85.75,85.712,10.499]
[1773180021207,21.05069655,85.75,85.69,3.48297096]
[1773180021208,21.05069655,85.75,85.713,18.29312914]
[1773180021605,3.48297096,85.73,85.688,18.29312914]
[1773180021808,19.0164005,85.729,85.688,18.29312914]
[1773180023213,3.48297096,85.71,85.661,32.70730106]
[1773180023418,22.49937146,85.71,85.662,18.29312914]
[1773180024420,22.49937146,85.71,85.672,10.504]
[1773180024721,22.49937146,85.71,85.662,18.29312914]
[1773180024917,3.48297096,85.7,85.662,18.29312914]
[1773180025520,3.48297096,85.7,85.663,10.505]
[1773180026222,22.49937146,85.7,85.663,10.505]
[1773180026516,22.49937146,85.7,85.655,10.506]
[1773180030015,22.49937146,85.7,85.658,18.29312914]
[1773180031420,22.49937146,85.7,85.661,10.505]
[1773180032918,3.48297096,85.7,85.665,18.29312914]
[1773180033123,19.0164005,85.712,85.665,18.29312914]
[1773180033321,3.48297096,85.73,85.681,18.29312914]
[1773180034230,3.48297096,85.73,85.69,10.502]
[1773180036225,13.97997096,85.73,85.683,18.29312914]
[1773180037327,13.97997096,85.73,85.685,28.79512914]
[1773180038130,32.99637146,85.73,85.685,28.79512914]
[1773180039228,19.0164005,85.729,85.685,28.79512914]
[1773180039428,19.0164005,85.729,85.688,10.502]
[1773180043032,19.0164005,85.729,85.69,10.502]
[1773180050534,19.0164005,85.729,85.689,18.29312914]
[1773180052335,19.0164005,85.729,85.691,10.502]
[1773180057539,19.0164005,85.729,85.689,18.29312914]
[1773180057734,18.86273209,85.709,85.651,18.7984333]
[1773180057939,20.991,85.745,85.651,18.7984333]
[1773180057940,22.34629572,85.7,85.651,18.7984333]
[1773180059437,22.34629572,85.7,85.664,10.505]
[1773180060131,22.34629572,85.7,85.657,10.506]
[1773180060329,22.34629572,85.7,85.651,18.7984333]
[1773180061434,22.34629572,85.7,85.663,10.505]
[1773180067140,22.34629572,85.7,85.67,10.504]
[1773180067349,22.34629572,85.7,85.661,18.7984333]
[1773180068441,22.34629572,85.7,85.663,10.505]
[1773180068649,3.48356363,85.69,85.641,18.7984333]
[1773180068843,22.34629572,85.7,85.641,18.7984333]
[1773180069648,18.86273209,85.698,85.656,10.506]
[1773180069851,18.86273209,85.689,85.656,10.506]
[1773180073646,18.86273209,85.689,85.65,18.7984333]
[1773180074048,18.86273209,85.689,85.656,10.506]
[1773180078555,18.86273209,85.699,85.65,22.28199693]
[1773180079156,18.86273209,85.699,85.674,10.504]
[1773180080056,1.0,85.722,85.65,3.48356363]
[1773180080057,19.32959391,85.713,85.678,18.73713548]
[1773180081355,19.32959391,85.713,85.686,10.502]
[1773180084965,19.32959391,85.713,85.693,10.502]
[1773180085164,19.32959391,85.735,85.693,18.73713548]
[1773180085365,19.32959391,85.748,85.701,18.73713548]
[1773180086162,19.32959391,85.748,85.715,10.499]
[1773180086567,19.32959391,85.748,85.66,21.62125788]
[1773180086568,22.81315754,85.77,85.721,18.73713548]
[1773180087271,19.32959391,85.77,85.733,10.497]
[1773180087472,19.32959391,85.77,85.733,29.23413548]
[1773180088167,19.32959391,85.77,85.736,10.496]
[1773180088574,19.32959391,85.77,85.737,18.73713548]
[1773180088873,3.48356363,85.78,85.737,18.73713548]
[1773180090370,3.48356363,85.78,85.74,10.496]
[1773180091276,3.48356363,85.78,85.747,10.495]
[1773180092574,3.48356363,85.78,85.747,29.23213548]
[1773180092766,3.48356363,85.78,85.748,18.73713548]
[1773180092964,19.32959391,85.782,85.752,10.494]
[1773180093171,3.48356363,85.79,85.752,29.23113548]
[1773180095774,3.48356363,85.79,85.753,18.73713548]
[1773180096573,19.32959391,85.809,85.753,18.73713548]
[1773180096777,19.32959391,85.809,85.761,18.73713548]
[1773180098380,19.32959391,85.809,85.774,10.492]
[1773180098575,19.32959391,85.809,85.73,20.995]
[1773180098576,19.32959391,85.813,85.775,18.73713548]
[1773180099383,19.32959391,85.813,85.777,18.73713548]
[1773180100282,19.32959391,85.813,85.78,10.491]
[1773180107285,3.48356363,85.82,85.781,19.05483329]
[1773180107687,3.47593724,85.82,85.781,19.05483329]
[1773180108375,21.01841556,85.82,85.781,19.05483329]
[1773180108577,21.01841556,85.82,85.785,10.49]
[1773180109281,17.54247832,85.82,85.789,29.13408295]
[1773180109481,17.43017983,85.832,85.79,18.64408295]
[1773180109684,17.43017983,85.832,85.79,22.12002019]
[1773180109880,3.47593724,85.84,85.79,22.12002019]
[1773180110082,3.47593724,85.84,85.801,18.64408295]
[1773180110286,20.90611707,85.84,85.801,18.64408295]
[1773180110486,20.90611707,85.84,85.79,3.47593724]
[1773180110687,20.90611707,85.84,85.787,18.64408295]
[1773180111591,20.90611707,85.84,85.797,10.489]
[1773180112088,3.47593724,85.83,85.797,10.489]
[1773180112888,17.43017983,85.809,85.759,18.64408295]
[1773180113091,17.43017983,85.809,85.652,28.82986778]
[1773180113092,20.90611707,85.79,85.747,18.64408295]
[1773180114291,3.47593724,85.78,85.747,18.64408295]
[1773180117595,3.47593724,85.77,85.745,10.495]
[1773180117793,3.47593724,85.77,85.735,18.64408295]
[1773180118293,17.43017983,85.78,85.705,21.001]
[1773180118294,3.47593724,85.76,85.737,10.496]
[1773180118807,3.47593724,85.76,85.723,18.64408295]
[1773180120493,3.47593724,85.76,85.725,18.64408295]
[1773180121392,3.47593724,85.76,85.73,10.497]
[1773180121598,3.47593724,85.77,85.731,18.64408295]
[1773180122500,3.47593724,85.78,85.742,18.64408295]
[1773180122895,3.47593724,85.77,85.741,10.496]
[1773180124799,3.47593724,85.77,85.742,18.64408295]
[1773180125193,3.47593724,85.77,85.744,10.495]
[1773180125393,17.43017983,85.779,85.744,29.13908295]
[1773180129505,17.43017983,85.779,85.752,10.494]
[1773180129706,17.43017983,85.779,85.744,18.64408295]
[1773180130001,3.47593724,85.76,85.732,18.64408295]
[1773180130305,3.47593724,85.76,85.725,10.498]
[1773180130505,3.47593724,85.76,85.725,29.14208295]
[1773180130903,3.47593724,85.76,85.731,10.497]
[1773180133407,20.90611707,85.77,85.731,10.497]
[1773180134707,3.47593724,85.76,85.731,10.497]
[1773180138411,3.47593724,85.76,85.737,10.496]
[1773180139112,3.47593724,85.76,85.726,29.14208295]
[1773180139707,3.47593724,85.76,85.732,10.497]
[1773180144518,3.47593724,85.76,85.679,35.0]
[1773180144519,3.47593724,85.75,85.721,18.70065232]
[1773180144721,3.47593724,85.75,85.71,18.70065232]
[1773180146318,3.47593724,85.75,85.712,10.499]
[1773180146815,3.47593724,85.75,85.71,18.70065232]
[1773180147123,22.58751504,85.76,85.71,18.70065232]
[1773180148020,22.58751504,85.76,85.719,18.70065232]
[1773180149322,22.58751504,85.76,85.719,29.19865232]
[1773180151312,3.47593724,85.75,85.719,29.19865232]
[1773180151517,22.58751504,85.75,85.719,10.498]
[1773180152016,22.58751504,85.75,85.712,10.499]
[1773180153416,3.47593724,85.72,85.681,18.70065232]
[1773180153720,19.1115778,85.719,85.681,18.70065232]
[1773180154024,3.47593724,85.71,85.681,18.70065232]
[1773180154727,3.47593724,85.71,85.681,29.20365232]
[1773180155625,3.47593724,85.71,85.681,18.70065232]
[1773180159728,3.47593724,85.71,85.67,18.70065232]
[1773180161429,3.47593724,85.71,85.673,10.504]
[1773180161928,3.47593724,85.71,85.673,29.20465232]
[1773180162628,3.47593724,85.71,85.674,18.70065232]
[1773180163435,3.47593724,85.69,85.641,18.70065232]
[1773180164127,22.58751504,85.72,85.661,18.70065232]
[1773180165428,22.58751504,85.72,85.66,3.47593724]
[1773180165429,22.58751504,85.72,85.676,29.20465232]
[1773180166530,3.47593724,85.71,85.676,29.20465232]
[1773180167130,3.47593724,85.71,85.676,18.70065232]
[1773180168937,3.47593724,85.72,85.676,18.70065232]
[1773180169135,17.34147039,85.741,85.691,17.39391872]
[1773180169336,0.5832128,85.743,85.713,18.1663864]
[1773180169932,0.5832128,85.743,85.714,10.499]
[1773180170131,0.5832128,85.743,85.713,18.1663864]
[1773180171128,0.5832128,85.743,85.719,10.498]
[1773180171336,0.5832128,85.743,85.72,18.1663864]
[1773180172437,0.5832128,85.743,85.722,10.498]
[1773180172834,18.28342761,85.742,85.69,3.48126443]
[1773180173040,18.28342761,85.742,85.68,21.007]
[1773180173041,3.48126443,85.74,85.707,10.5]
[1773180173937,18.28342761,85.719,85.661,18.1663864]
[1773180174239,0.5832128,85.743,85.651,18.1663864]
[1773180174240,3.48126443,85.71,85.651,18.1663864]
[1773180174439,3.48126443,85.71,85.661,18.1663864]
[1773180174839,3.48126443,85.73,85.674,18.1663864]
[1773180175035,3.48126443,85.72,85.674,18.1663864]
[1773180175241,3.48126443,85.74,85.691,18.1663864]
[1773180175435,0.5832128,85.743,85.691,18.1663864]
[1773180175436,3.48126443,85.73,85.691,18.1663864]
[1773180175741,18.28342761,85.742,85.691,18.1663864]
[1773180175938,3.48126443,85.73,85.691,18.1663864]
[1773180177741,3.48126443,85.73,85.693,10.501]
[1773180178240,3.48126443,85.73,85.693,28.6673864]
[1773180181243,18.28342761,85.699,85.641,18.1663864]
[1773180181640,3.48126443,85.71,85.651,18.1663864]
[1773180181837,3.48126443,85.71,85.668,18.1663864]
[1773180182436,3.48126443,85.71,85.671,10.504]
[1773180182641,3.48126443,85.7,85.671,10.504]
[1773180183338,3.48126443,85.68,85.631,18.1663864]
[1773180183540,3.48126443,85.67,85.631,18.1663864]
[1773180183741,3.48126443,85.66,85.631,18.1663864]
[1773180184443,3.48126443,85.66,85.633,10.509]
[1773180184638,3.48126443,85.67,85.633,10.509]
[1773180185940,3.48126443,85.67,85.585,193.9480941]
[1773180185941,3.48126443,85.66,85.616,18.1663864]
[1773180186238,3.48126443,85.63,85.6,18.1663864]
[1773180186438,18.28342761,85.65,85.617,10.511]
[1773180186634,21.76469204,85.65,85.6,18.1663864]
[1773180186837,3.48126443,85.64,85.6,18.1663864]
[1773180187239,3.48126443,85.64,85.608,10.512]
[1773180188148,3.48126443,85.64,85.608,28.6783864]
[1773180188348,21.76469204,85.65,85.608,28.6783864]
[1773180189347,35.0,85.701,85.557,2.03039762]
[1773180189348,3.48126443,85.68,85.631,18.1663864]
[1773180189646,3.48126443,85.66,85.616,18.1663864]
[1773180189850,3.48126443,85.66,85.601,18.1663864]
[1773180189851,3.48126443,85.65,85.601,18.1663864]
[1773180190251,3.48126443,85.63,85.601,18.1663864]
[1773180190952,3.48126443,85.64,85.604,10.512]
[1773180191153,3.48126443,85.65,85.605,18.1663864]
[1773180192154,3.48126443,85.65,85.612,10.511]
[1773180192455,3.48126443,85.64,85.605,18.1663864]
[1773180193353,3.48126443,85.65,85.616,10.511]
[1773180193953,3.48126443,85.64,85.608,10.512]
[1773180195555,3.48126443,85.63,85.598,10.513]
[1773180195861,3.48126443,85.62,85.591,18.1663864]
[1773180196060,3.48126443,85.63,85.591,18.1663864]
[1773180197060,3.48126443,85.62,85.592,10.514]
[1773180197866,14.41848283,85.701,85.557,2.03039762]
[1773180197867,3.48126443,85.66,85.601,18.1663864]
[1773180198652,3.48126443,85.66,85.627,10.51]
[1773180199160,3.48126443,85.66,85.61,3.48126443]
[1773180199557,21.9985695,85.66,85.601,18.1663864]
[1773180199756,3.48126443,85.65,85.61,10.512]
[1773180199957,3.48126443,85.62,85.561,17.70286645]
[1773180200261,3.48126443,85.61,85.561,17.70286645]
[1773180201354,3.48126443,85.62,85.574,17.70286645]
[1773180202160,3.48126443,85.61,85.574,17.70286645]
[1773180202657,3.48126443,85.64,85.591,17.70286645]
[1773180202863,3.48126443,85.63,85.591,17.70286645]
[1773180203554,21.9985695,85.64,85.6,10.513]
[1773180205364,21.9985695,85.64,85.609,10.512]
[1773180206260,21.9985695,85.64,85.591,17.70286645]
[1773180206468,3.48126443,85.62,85.577,17.70286645]
[1773180206763,3.48126443,85.62,85.591,10.514]
[1773180211461,3.48126443,85.61,85.568,10.517]
[1773180211666,3.48126443,85.6,85.563,17.70286645]
[1773180212068,3.48126443,85.61,85.563,17.70286645]
[1773180213364,3.48126443,85.61,85.574,10.516]
[1773180215270,3.48126443,85.61,85.58,10.515]
[1773180215973,3.48126443,85.64,85.591,17.70286645]
[1773180217477,3.48126443,85.64,85.606,10.512]
[1773180218365,3.48126443,85.63,85.606,10.512]
[1773180218672,3.48126443,85.62,85.576,17.70286645]
[1773180219175,3.48126443,85.62,85.587,10.514]
[1773180220977,3.48126443,85.62,85.592,10.514]
[1773180225479,3.48126443,85.62,85.599,10.513]
[1773180230086,8.72175072,85.644,85.6,20.87335977]
[1773180230291,17.43117468,85.657,85.611,17.39209534]
[1773180230486,8.72927197,85.656,85.611,17.39209534]
[1773180230681,8.72927197,85.655,85.611,17.39209534]
[1773180230890,3.48126443,85.66,85.611,17.39209534]
[1773180231084,8.73154683,85.659,85.611,17.39209534]
[1773180231290,8.73154683,85.658,85.611,17.39209534]
[1773180231491,8.73154683,85.657,85.626,10.51]
[1773180231692,8.73154683,85.656,85.611,17.39209534]
[1773180231891,17.43117468,85.67,85.635,10.509]
[1773180231892,20.92012326,85.67,85.635,10.509]
[1773180232194,20.92012326,85.67,85.574,35.0]
[1773180232195,8.73283003,85.679,85.641,17.39209534]
[1773180232395,3.48894858,85.69,85.641,17.39209534]
[1773180232795,3.48894858,85.69,85.651,10.507]
[1773180235293,3.48894858,85.69,85.659,10.506]
[1773180235494,17.43117468,85.697,85.659,10.506]
[1773180236094,3.48894858,85.69,85.659,10.506]
[1773180236296,17.43117468,85.697,85.659,10.506]
[1773180238698,3.48894858,85.68,85.652,17.39209534]
[1773180238898,3.48894858,85.68,85.651,10.507]
[1773180239694,8.70323797,85.707,85.657,10.506]
[1773180239695,3.48894858,85.7,85.657,10.506]
[1773180239898,3.48894858,85.69,85.652,17.39209534]
[1773180240100,17.43117468,85.694,85.611,17.39209534]
[1773180240300,3.48894858,85.69,85.648,10.507]
[1773180240901,3.48894858,85.69,85.567,21.70462788]